bitfinex-derivatives/quotes_BTCF0:USTF0_20250928
["timestamp","ask_amount","ask_price","bid_price","bid_amount"]
[1759087199329,2.42122156,110300.0,110290.0,0.11558072]
[1759087199517,1.59982156,110300.0,110290.0,0.11558072]
[1759087199717,2.42122156,110300.0,110290.0,0.11558072]
[1759087199921,1.59982156,110300.0,110290.0,0.11558072]
[1759087200122,2.42130156,110300.0,110290.0,0.11558072]
[1759087202229,1.59982156,110300.0,110290.0,0.11558072]
[1759087202932,2.42130156,110300.0,110290.0,0.12830072]
[1759087203530,1.59982156,110300.0,110290.0,0.12830072]
[1759087203727,2.42126156,110300.0,110290.0,0.12830072]
[1759087205133,2.42126156,110300.0,110290.0,0.11558072]
[1759087207636,1.74308138,110300.0,110290.0,0.12830072]
[1759087207836,2.42126156,110300.0,110290.0,0.12830072]
[1759087214244,2.42126156,110300.0,110290.0,0.11558072]
[1759087217340,1.59982156,110300.0,110290.0,0.11558072]
[1759087217642,2.31709056,110300.0,110290.0,0.46854081]
[1759087217841,2.31709056,110300.0,110290.0,0.12945072]
[1759087218140,2.32977056,110300.0,110290.0,0.46854081]
[1759087218542,2.42040156,110300.0,110290.0,0.46854081]
[1759087218744,2.42040156,110300.0,110290.0,0.45467081]
[1759087219151,1.74222138,110300.0,110290.0,0.45467081]
[1759087219445,2.42040156,110300.0,110290.0,0.45467081]
[1759087222150,2.32977056,110300.0,110290.0,0.45467081]
[1759087224353,1.16964047,110300.0,110290.0,0.51649396]
[1759087224553,1.99100047,110300.0,110290.0,0.51649396]
[1759087224852,1.16964047,110300.0,110290.0,0.51649396]
[1759087225147,1.16964047,110300.0,110290.0,0.46768081]
[1759087225452,0.05707038,110300.0,110290.0,0.91649396]
[1759087225653,0.05707038,110300.0,110290.0,2.09877396]
[1759087226451,0.04583065,110300.0,110290.0,2.09877396]
[1759087226654,0.04783065,110300.0,110290.0,2.09877396]
[1759087226854,0.04783065,110300.0,110290.0,1.27729396]
[1759087227151,0.04783065,110300.0,110290.0,2.09877396]
[1759087228449,0.04783065,110300.0,110290.0,1.73797396]
[1759087229045,0.04783065,110300.0,110290.0,1.73785396]
[1759087229450,0.05712882,110300.0,110290.0,1.73785396]
[1759087229948,0.05712882,110300.0,110290.0,0.91649396]
[1759087230252,0.05712882,110300.0,110290.0,1.73781396]
[1759087231754,0.05712882,110300.0,110290.0,0.91649396]
[1759087231952,0.05712882,110300.0,110290.0,2.09861396]
[1759087232557,0.05712882,110300.0,110290.0,0.91649396]
[1759087232747,0.05712882,110300.0,110290.0,1.73773396]
[1759087232947,0.05712882,110300.0,110290.0,0.91649396]
[1759087233149,0.05712882,110300.0,110290.0,1.73769396]
[1759087233454,0.05712882,110300.0,110290.0,0.57740387]
[1759087233656,0.05712882,110300.0,110290.0,0.91649396]
[1759087233954,0.39621891,110300.0,110290.0,1.73781396]
[1759087235352,0.05712882,110300.0,110290.0,1.73781396]
[1759087237248,0.05712882,110300.0,110290.0,1.73773396]
[1759087237743,0.39621891,110300.0,110290.0,1.73769396]
[1759087237958,0.39621891,110300.0,110290.0,1.73765396]
[1759087238954,0.05712882,110300.0,110290.0,1.73761396]
[1759087239158,0.39621891,110300.0,110290.0,1.73761396]
[1759087239561,0.39621891,110300.0,110290.0,0.51649396]
[1759087239760,0.39621891,110300.0,110290.0,1.33785396]
[1759087242164,0.05712882,110300.0,110290.0,1.33785396]
[1759087242462,0.39621891,110300.0,110290.0,1.33785396]
[1759087243060,0.05712882,110300.0,110290.0,1.33785396]
[1759087244265,0.05712882,110300.0,110290.0,1.33783795]
[1759087255563,0.05712882,110300.0,110290.0,1.33747795]
[1759087256568,0.05712882,110300.0,110290.0,0.51647795]
[1759087256865,0.05712882,110300.0,110290.0,1.33763795]
[1759087259368,0.05712882,110300.0,110290.0,0.51647795]
[1759087259570,0.05712882,110300.0,110290.0,1.33755795]
[1759087259770,0.05712882,110300.0,110290.0,0.99848387]
[1759087260070,0.05712882,110300.0,110290.0,1.33755795]
[1759087261664,0.41792882,110300.0,110290.0,1.33755795]
[1759087261868,0.05712882,110300.0,110290.0,1.33755795]
[1759087290404,0.05712882,110300.0,110290.0,0.99848387]
[1759087290609,0.05712882,110300.0,110290.0,1.33755795]
[1759087297808,0.05712882,110300.0,110290.0,0.51647795]
[1759087298116,0.05712882,110300.0,110290.0,1.33699795]
[1759087298714,0.05706301,110300.0,110290.0,1.33699795]
[1759087299815,0.05706301,110300.0,110290.0,0.51647795]
[1759087300216,0.05706301,110300.0,110290.0,1.33687795]
[1759087304213,0.05706301,110300.0,110290.0,0.99780387]
[1759087304412,0.05706301,110300.0,110290.0,1.33687795]
[1759087306216,0.05706301,110300.0,110290.0,1.33686732]
[1759087307025,0.05706301,110300.0,110290.0,1.69766732]
[1759087311825,0.03460301,110300.0,110290.0,1.69766732]
[1759087312124,0.03460301,110300.0,110290.0,1.35860387]
[1759087312430,0.02530484,110300.0,110290.0,2.03673077]
[1759087313331,0.004,110300.0,110290.0,2.05316955]
[1759087313838,0.004,110300.0,110290.0,2.45316955]
[1759087314039,1e-07,110300.0,110290.0,2.45316955]
[1759087315938,0.00919296,110310.0,110300.0,0.125901]
[1759087316134,0.04407977,110320.0,110310.0,0.1258928]
[1759087316335,0.06534439,110320.0,110310.0,1.28539625]
[1759087316534,0.07453099,110320.0,110310.0,1.28539625]
[1759087316938,0.07453099,110320.0,110310.0,1.28711777]
[1759087317936,0.05171099,110320.0,110310.0,1.64847777]
[1759087318332,0.12446646,110320.0,110310.0,1.64847777]
[1759087318733,0.14728646,110320.0,110310.0,0.82747777]
[1759087318934,0.14728646,110320.0,110310.0,1.64847777]
[1759087319137,0.12602669,110320.0,110310.0,1.64847777]
[1759087321644,0.12602669,110320.0,110310.0,1.30941432]
[1759087321844,0.12602669,110320.0,110310.0,1.64847777]
[1759087322146,0.38362,110340.0,110330.0,0.1258764]
[1759087322345,0.38362,110340.0,110330.0,0.46493985]
[1759087322747,0.39276615,110340.0,110330.0,0.46493985]
[1759087323046,0.7318296,110340.0,110330.0,0.46666137]
[1759087323238,0.46363879,110340.0,110330.0,0.46666137]
[1759087323742,0.46363879,110340.0,110330.0,0.12759792]
[1759087324042,0.46363879,110340.0,110330.0,0.46666137]
[1759087326943,0.80270224,110340.0,110330.0,0.46666137]
[1759087327943,0.44190224,110340.0,110330.0,0.46666137]
[1759087328332,0.10283879,110340.0,110330.0,0.12759792]
[1759087328539,0.10283879,110340.0,110330.0,0.46666137]
[1759087328847,0.44190224,110340.0,110330.0,1.28802137]
[1759087329046,0.44190224,110340.0,110330.0,1.28846137]
[1759087332948,0.44190224,110340.0,110330.0,0.46666137]
[1759087333139,0.53250034,110340.0,110330.0,1.28838137]
[1759087333554,0.44190224,110340.0,110330.0,1.28838137]
[1759087334242,0.46302084,110340.0,110330.0,1.28838137]
[1759087334849,0.46302084,110340.0,110330.0,0.94931792]
[1759087335056,0.46302084,110340.0,110330.0,1.28838137]
[1759087335744,0.46302084,110340.0,110330.0,0.46666137]
[1759087335945,0.46302084,110340.0,110330.0,1.28858137]
[1759087339146,0.46302084,110340.0,110330.0,0.46666137]
[1759087339346,0.46302084,110340.0,110330.0,1.28842137]
[1759087340147,0.46302084,110340.0,110330.0,0.46666137]
[1759087340352,0.46302084,110340.0,110330.0,1.28834137]
[1759087342454,0.55361894,110340.0,110330.0,0.46666137]
[1759087342655,0.55361894,110340.0,110330.0,0.94919792]
[1759087342854,0.55361894,110340.0,110330.0,1.28826137]
[1759087346658,0.46302084,110340.0,110330.0,1.28826137]
[1759087350057,0.12395739,110340.0,110330.0,1.28826137]
[1759087350356,0.46302084,110340.0,110330.0,1.28826137]
[1759087350855,0.46302844,110340.0,110330.0,1.28826137]
[1759087351253,0.10114499,110340.0,110330.0,1.28826137]
[1759087351851,0.10114499,110340.0,110330.0,0.94919792]
[1759087352046,0.44020844,110340.0,110330.0,1.28826137]
[1759087353353,0.10114499,110340.0,110330.0,1.28826137]
[1759087354658,0.12357499,110340.0,110330.0,0.94919792]
[1759087354861,0.46263844,110340.0,110330.0,1.28826137]
[1759087355047,0.46263844,110340.0,110330.0,1.33713536]
[1759087355758,0.12357499,110340.0,110330.0,1.33713536]
[1759087355958,0.46263844,110340.0,110330.0,1.33713536]
[1759087358759,0.12357499,110340.0,110330.0,1.33713536]
[1759087363964,0.12357499,110340.0,110330.0,0.51553536]
[1759087364163,0.12357499,110340.0,110330.0,1.33921536]
[1759087365362,0.12357499,110340.0,110330.0,0.51553536]
[1759087365555,0.12357499,110340.0,110330.0,1.33913536]
[1759087366266,0.12357499,110340.0,110330.0,1.33891708]
[1759087372168,0.12357499,110340.0,110330.0,1.33875708]
[1759087378470,0.12357499,110340.0,110330.0,0.51531708]
[1759087378672,0.12357499,110340.0,110330.0,1.33835708]
[1759087378972,0.12357499,110340.0,110330.0,0.51531708]
[1759087379272,0.83683016,110340.0,110330.0,0.99947191]
[1759087380671,0.49798499,110340.0,110330.0,0.99947191]
[1759087380873,0.83683016,110340.0,110330.0,0.99947191]
[1759087381574,0.83683016,110340.0,110330.0,0.17647191]
[1759087387478,0.83683016,110340.0,110330.0,0.12759792]
[1759087393281,0.47603016,110340.0,110330.0,0.12759792]
[1759087393482,0.83683016,110340.0,110330.0,0.12759792]
[1759087397188,1.66015016,110340.0,110330.0,0.12759792]
[1759087397589,0.83683016,110340.0,110330.0,0.17647191]
[1759087397991,1.66007016,110340.0,110330.0,0.17647191]
[1759087398489,0.83683016,110340.0,110330.0,0.17647191]
[1759087398788,1.66007016,110340.0,110330.0,0.17647191]
[1759087399188,0.83683016,110340.0,110330.0,0.17647191]
[1759087399389,1.66003016,110340.0,110330.0,0.17647191]
[1759087399589,0.83683016,110340.0,110330.0,0.17647191]
[1759087399784,1.32114499,110340.0,110330.0,0.17647191]
[1759087399984,1.65999016,110340.0,110330.0,0.17647191]
[1759087401689,1.75058846,110340.0,110330.0,0.17647191]
[1759087406684,1.75058846,110340.0,110330.0,0.00172152]
[1759087406685,2.85023363,110340.0,110330.0,0.00172152]
[1759087410388,2.85023363,110340.0,110330.0,0.09232802]
[1759087410589,2.02707363,110340.0,110330.0,0.11467802]
[1759087410789,0.85878499,110340.0,110330.0,0.12749802]
[1759087410993,2.00666016,110340.0,110330.0,0.12749802]
[1759087411192,2.09725846,110340.0,110330.0,0.12749802]
[1759087412094,1.27461846,110340.0,110330.0,0.12749802]
[1759087412293,2.09745846,110340.0,110330.0,0.12749802]
[1759087415792,2.11099846,110340.0,110330.0,0.12749802]
[1759087418698,1.19756016,110340.0,110330.0,0.12749802]
[1759087418901,2.11147846,110340.0,110330.0,0.12749802]
[1759087420500,1.28815846,110340.0,110330.0,0.12749802]
[1759087420697,2.11139846,110340.0,110330.0,0.12749802]
[1759087422603,1.38979846,110340.0,110330.0,0.12749802]
[1759087422812,1.75059846,110340.0,110330.0,0.12749802]
[1759087425410,0.92735846,110340.0,110330.0,0.12749802]
[1759087425612,1.75031846,110340.0,110330.0,0.12749802]
[1759087426210,2.08930143,110340.0,110330.0,0.12749802]
[1759087427613,2.12196745,110340.0,110330.0,0.12749802]
[1759087429912,2.10842745,110340.0,110330.0,0.12749802]
[1759087437822,2.07576143,110340.0,110330.0,0.12749802]
[1759087440828,2.10842745,110340.0,110330.0,0.12749802]
[1759087442431,2.12927357,110340.0,110330.0,0.12749802]
[1759087450839,1.45144543,110340.0,110330.0,0.12749802]
[1759087451041,2.12927357,110340.0,110330.0,0.12749802]
[1759087454443,2.09660755,110340.0,110330.0,0.12749802]
[1759087456248,1.27364755,110340.0,110330.0,0.12749802]
[1759087456443,2.09528755,110340.0,110330.0,0.12749802]
[1759087456747,1.75637348,110340.0,110330.0,0.12749802]
[1759087458744,2.09528755,110340.0,110330.0,0.12749802]
[1759087461548,2.09528755,110340.0,110330.0,0.46641209]
[1759087462454,2.09528755,110340.0,110330.0,0.12749802]
[1759087464950,1.41745941,110340.0,110330.0,0.12749802]
[1759087465146,0.12357499,110340.0,110330.0,0.86641209]
[1759087466942,0.46248906,110340.0,110330.0,0.86641209]
[1759087468344,0.12357499,110340.0,110330.0,0.86641209]
[1759087468550,0.11442884,110340.0,110330.0,1.27608608]
[1759087468850,0.09199884,110340.0,110330.0,2.09740608]
[1759087469044,0.0211262,110340.0,110330.0,2.43632015]
[1759087469248,0.051307,110350.0,110340.0,0.1274683]
[1759087469446,0.07245438,110350.0,110340.0,1.16781796]
[1759087469647,0.07245438,110350.0,110340.0,1.21669195]
[1759087469955,0.41136845,110350.0,110340.0,1.21669195]
[1759087470651,0.07245438,110350.0,110340.0,1.21669195]
[1759087471452,0.07245438,110350.0,110340.0,1.16781796]
[1759087473354,0.051307,110350.0,110340.0,1.16781796]
[1759087473654,0.12321665,110350.0,110340.0,1.16781796]
[1759087474854,0.10206665,110350.0,110340.0,1.56781796]
[1759087477856,0.12317874,110350.0,110340.0,1.56781796]
[1759087478357,1.2171,110370.0,110360.0,0.1274519]
[1759087478557,1.58597847,110370.0,110360.0,0.46808749]
[1759087478758,0.76465847,110370.0,110360.0,0.46808749]
[1759087483063,0.83786646,110370.0,110360.0,0.46808749]
[1759087483465,0.49895239,110370.0,110360.0,0.46808749]
[1759087483665,0.83786646,110370.0,110360.0,0.46808749]
[1759087484963,0.49895239,110370.0,110360.0,0.46808749]
[1759087485170,0.83786646,110370.0,110360.0,0.46808749]
[1759087486272,0.83764441,110370.0,110360.0,0.12917342]
[1759087489672,1.65856441,110370.0,110360.0,0.12917342]
[1759087491374,1.65856441,110370.0,110360.0,0.46786544]
[1759087493878,1.31987239,110370.0,110360.0,0.46786544]
[1759087497282,0.49895239,110370.0,110360.0,0.46786544]
[1759087497479,1.31983239,110370.0,110360.0,0.46786544]
[1759087501280,0.49895239,110370.0,110360.0,0.46786544]
[1759087501491,1.31983239,110370.0,110360.0,0.46786544]
[1759087502684,0.49895239,110370.0,110360.0,0.46786544]
[1759087502886,1.31983239,110370.0,110360.0,0.46786544]
[1759087503085,1.31983239,110370.0,110360.0,0.12917342]
[1759087503283,1.31983239,110370.0,110360.0,0.46786544]
[1759087504084,0.49895239,110370.0,110360.0,0.46786544]
[1759087504282,1.31979239,110370.0,110360.0,0.46786544]
[1759087506186,1.31979239,110370.0,110360.0,0.12917342]
[1759087506388,1.31979239,110370.0,110360.0,0.46786544]
[1759087514392,1.31979239,110370.0,110360.0,0.51673943]
[1759087523403,0.95899239,110370.0,110360.0,0.51673943]
[1759087523603,1.31979239,110370.0,110360.0,0.51673943]
[1759087525605,1.31979239,110370.0,110360.0,0.17804741]
[1759087526006,1.31979239,110370.0,110360.0,0.51673943]
[1759087527807,0.49895239,110370.0,110360.0,0.46786544]
[1759087528008,1.30592239,110370.0,110360.0,0.46786544]
[1759087528903,0.48512239,110370.0,110360.0,0.46786544]
[1759087529104,1.30588239,110370.0,110360.0,0.46786544]
[1759087530708,0.48512239,110370.0,110360.0,0.46786544]
[1759087530906,1.30588239,110370.0,110360.0,0.46786544]
[1759087535009,0.94508239,110370.0,110360.0,0.46786544]
[1759087535210,1.30588239,110370.0,110360.0,0.46786544]
[1759087537712,1.30588239,110370.0,110360.0,0.51673943]
[1759087545513,0.94508239,110370.0,110360.0,0.51673943]
[1759087545719,1.30588239,110370.0,110360.0,0.51673943]
[1759087547220,0.48512239,110370.0,110360.0,0.51673943]
[1759087547517,1.30584239,110370.0,110360.0,0.51673943]
[1759087548321,1.64450844,110370.0,110360.0,0.51671346]
[1759087549018,0.83759844,110370.0,110360.0,0.51671346]
[1759087549221,1.65831844,110370.0,110360.0,0.51671346]
[1759087550623,1.31965239,110370.0,110360.0,0.51671346]
[1759087550825,1.65831844,110370.0,110360.0,0.51671346]
[1759087554322,1.65831844,110370.0,110360.0,0.17804741]
[1759087554624,1.31965239,110370.0,110360.0,0.51671346]
[1759087554824,1.65831844,110370.0,110360.0,0.51671346]
[1759087560931,1.63721021,110370.0,110360.0,0.50275346]
[1759087561233,1.65835958,110370.0,110360.0,0.50275346]
[1759087563637,1.65835958,110370.0,110360.0,0.16408741]
[1759087563840,1.65835958,110370.0,110360.0,0.50275346]
[1759087565040,0.83763958,110370.0,110360.0,0.50275346]
[1759087565242,1.65831958,110370.0,110360.0,0.50275346]
[1759087566942,0.83763958,110370.0,110360.0,0.50275346]
[1759087567239,1.31965353,110370.0,110360.0,0.51560346]
[1759087567439,1.65831958,110370.0,110360.0,0.51560346]
[1759087567742,1.65831958,110370.0,110360.0,0.46672947]
[1759087569044,1.65831958,110370.0,110360.0,0.51560346]
[1759087570044,1.31965353,110370.0,110360.0,0.51560346]
[1759087570244,1.65831958,110370.0,110360.0,0.51560346]
[1759087570440,1.65831958,110370.0,110360.0,0.17693741]
[1759087570638,1.65831958,110370.0,110360.0,0.46672947]
[1759087570938,0.83763958,110370.0,110360.0,0.46672947]
[1759087571143,1.65831958,110370.0,110360.0,0.46672947]
[1759087572344,1.31965353,110370.0,110360.0,0.46672947]
[1759087572546,1.65831958,110370.0,110360.0,0.46672947]
[1759087573246,1.31965353,110370.0,110360.0,0.46672947]
[1759087573446,1.65831958,110370.0,110360.0,0.46672947]
[1759087574949,1.31965353,110370.0,110360.0,0.46672947]
[1759087575149,1.65831958,110370.0,110360.0,0.46672947]
[1759087576047,1.65832129,110370.0,110360.0,0.46672947]
[1759087577750,1.65832129,110370.0,110360.0,0.51560346]
[1759087580049,1.31965524,110370.0,110360.0,0.51560346]
[1759087580241,1.65832129,110370.0,110360.0,0.51560346]
[1759087580751,0.49897524,110370.0,110360.0,0.51560346]
[1759087580957,1.65828129,110370.0,110360.0,0.51560346]
[1759087581250,0.48516524,110370.0,110360.0,0.85426951]
[1759087582353,0.12436524,110370.0,110360.0,1.21506951]
[1759087582648,0.02115108,110370.0,110360.0,1.61506951]
[1759087582858,0.02115108,110370.0,110360.0,1.56619552]
[1759087583044,0.02166,110380.0,110370.0,0.1258921]
[1759087583354,0.04282957,110380.0,110370.0,1.69478759]
[1759087583558,0.04282957,110380.0,110370.0,1.69650911]
[1759087583853,0.04282957,110380.0,110370.0,2.09650911]
[1759087585757,0.05182017,110380.0,110370.0,2.09650911]
[1759087588353,0.05182017,110380.0,110370.0,2.09646911]
[1759087588952,0.05182017,110380.0,110370.0,1.27590911]
[1759087589157,0.05182017,110380.0,110370.0,2.09646911]
[1759087589758,0.05182017,110380.0,110370.0,1.27590911]
[1759087589954,0.05182017,110380.0,110370.0,2.09642911]
[1759087590358,0.05182017,110380.0,110370.0,2.04759967]
[1759087590754,0.05182017,110380.0,110370.0,1.22707967]
[1759087590958,0.05182017,110380.0,110370.0,2.04759967]
[1759087591955,0.05182017,110380.0,110370.0,0.86627967]
[1759087592255,0.05182017,110380.0,110370.0,1.68679967]
[1759087592657,0.05182017,110380.0,110370.0,0.86627967]
[1759087593051,0.05182017,110380.0,110370.0,1.68679967]
[1759087593456,0.05182017,110380.0,110370.0,2.04759967]
[1759087594462,0.0306506,110380.0,110370.0,2.04759967]
[1759087596165,0.09261629,110390.0,110380.0,0.1258861]
[1759087596360,0.12261801,110390.0,110380.0,0.8032182]
[1759087596560,0.12261801,110390.0,110380.0,0.80493972]
[1759087596761,0.11374544,110390.0,110380.0,0.80493972]
[1759087597059,0.02166,110390.0,110380.0,0.85376916]
[1759087597365,0.02166,110390.0,110380.0,0.80493972]
[1759087597865,0.04278084,110390.0,110380.0,0.80493972]
[1759087601666,0.02112084,110390.0,110380.0,1.16573972]
[1759087601867,0.10323834,110400.0,110390.0,0.1258779]
[1759087602165,0.05204989,110400.0,110390.0,1.64574395]
[1759087602666,0.05204989,110400.0,110390.0,1.64746547]
[1759087603657,0.12455709,110400.0,110390.0,1.64746547]
[1759087604167,0.12455709,110400.0,110390.0,0.82706547]
[1759087604366,0.12455709,110400.0,110390.0,1.64746547]
[1759087605467,0.12455709,110400.0,110390.0,0.82706547]
[1759087605666,0.12455709,110400.0,110390.0,1.64742547]
[1759087605968,0.12455709,110400.0,110390.0,0.82706547]
[1759087606167,0.12455709,110400.0,110390.0,1.64742547]
[1759087607864,0.1152759,110400.0,110390.0,1.64742547]
[1759087608369,0.0941672,110400.0,110390.0,1.64742547]
[1759087608958,0.0941672,110400.0,110390.0,1.98609152]
[1759087609162,0.02166,110400.0,110390.0,1.64742547]
[1759087610267,0.02166,110400.0,110390.0,1.64719122]
[1759087610668,0.02166,110400.0,110390.0,1.64715122]
[1759087610972,0.02166,110400.0,110390.0,0.82683122]
[1759087611272,0.02166,110400.0,110390.0,1.64715122]
[1759087611870,0.02166,110400.0,110390.0,1.30871942]
[1759087612071,0.02166,110400.0,110390.0,1.64715122]
[1759087612674,0.02166,110400.0,110390.0,0.82683122]
[1759087612867,0.02166,110400.0,110390.0,1.64711122]
[1759087613169,0.02166,110400.0,110390.0,0.82683122]
[1759087613360,0.02166,110400.0,110390.0,1.30867942]
[1759087613561,0.09334152,110400.0,110390.0,1.64711122]
[1759087613768,0.02166,110400.0,110390.0,1.64711122]
[1759087615264,0.04282751,110400.0,110390.0,1.64711122]
[1759087615572,0.02166,110400.0,110390.0,1.64711122]
[1759087616169,0.02166,110400.0,110390.0,0.82683122]
[1759087616376,0.02166,110400.0,110390.0,1.64707122]
[1759087617077,0.02166,110400.0,110390.0,0.82683122]
[1759087617276,0.02166,110400.0,110390.0,1.64707122]
[1759087617573,0.03471,110400.0,110390.0,0.82683122]
[1759087617777,0.75511113,110400.0,110390.0,0.93423942]
[1759087617981,0.82829923,110400.0,110390.0,0.93423942]
[1759087618278,0.91884893,110400.0,110390.0,0.93423942]
[1759087618880,0.82829923,110400.0,110390.0,0.93423942]
[1759087622582,0.48986743,110400.0,110390.0,0.93423942]
[1759087622884,0.82829923,110400.0,110390.0,0.93423942]
[1759087624983,0.82829923,110400.0,110390.0,0.11399942]
[1759087625182,0.82829923,110400.0,110390.0,0.93423942]
[1759087625383,0.82829923,110400.0,110390.0,0.11399942]
[1759087627786,0.91884893,110400.0,110390.0,0.11399942]
[1759087628985,0.82829923,110400.0,110390.0,0.16282886]
[1759087630790,0.48986743,110400.0,110390.0,0.16282886]
[1759087630990,0.82829923,110400.0,110390.0,0.16282886]
[1759087633987,0.82829923,110400.0,110390.0,0.11399942]
[1759087634788,0.82829923,110400.0,110390.0,0.16282886]
[1759087634992,0.48986743,110400.0,110390.0,0.51400066]
[1759087635496,0.47681743,110400.0,110390.0,0.51400066]
[1759087636393,0.11601743,110400.0,110390.0,0.51400066]
[1759087636586,0.02116933,110400.0,110390.0,0.91400066]
[1759087637397,0.04426933,110400.0,110390.0,0.91400066]
[1759087638494,0.04426933,110400.0,110390.0,1.27480066]
[1759087640792,0.04426933,110400.0,110390.0,2.09500066]
[1759087641695,0.04426933,110400.0,110390.0,1.27480066]
[1759087641894,0.04426933,110400.0,110390.0,1.75656886]
[1759087642094,0.04426933,110400.0,110390.0,2.09500066]
[1759087644403,0.04426933,110400.0,110390.0,1.73420066]
[1759087645904,0.04426933,110400.0,110390.0,0.91400066]
[1759087646103,0.04426933,110400.0,110390.0,1.73420066]
[1759087652010,0.04426933,110400.0,110390.0,0.91400066]
[1759087652311,0.04426933,110400.0,110390.0,1.73420066]
[1759087654810,0.04426933,110400.0,110390.0,0.91400066]
[1759087655113,0.04426933,110400.0,110390.0,1.73416066]
[1759087659517,0.04426933,110400.0,110390.0,1.33416066]
[1759087660417,0.05757933,110400.0,110390.0,1.33416066]
[1759087661418,0.05757933,110400.0,110390.0,0.51400066]
[1759087661622,0.05757933,110400.0,110390.0,1.33416066]
[1759087661919,0.05757933,110400.0,110390.0,0.51400066]
[1759087662218,0.05757933,110400.0,110390.0,1.33416066]
[1759087662412,1.24736083,110400.0,110390.0,0.17556886]
[1759087662611,1.24736083,110400.0,110390.0,0.98298886]
[1759087663320,1.14350113,110400.0,110390.0,0.99697886]
[1759087663915,0.80506933,110400.0,110390.0,1.33541066]
[1759087664220,0.81837933,110400.0,110390.0,1.33541066]
[1759087664410,0.45757933,110400.0,110390.0,0.99697886]
[1759087664609,0.81837933,110400.0,110390.0,0.99697886]
[1759087665821,1.15681113,110400.0,110390.0,0.99697886]
[1759087672330,1.15688832,110400.0,110390.0,1.33548785]
[1759087673430,1.15688832,110400.0,110390.0,0.51532785]
[1759087673725,1.15688832,110400.0,110390.0,1.33548785]
[1759087676625,1.15688832,110400.0,110390.0,0.51532785]
[1759087676825,1.15688832,110400.0,110390.0,1.33580785]
[1759087680330,1.15688832,110400.0,110390.0,1.33560785]
[1759087687740,0.79608832,110400.0,110390.0,1.33560785]
[1759087688534,0.78277832,110400.0,110390.0,1.33560785]
[1759087688839,0.44426933,110400.0,110390.0,1.33560785]
[1759087690850,0.78277832,110400.0,110390.0,1.33560785]
[1759087692044,0.78277832,110400.0,110390.0,0.51532785]
[1759087692241,0.78277832,110400.0,110390.0,1.33552785]
[1759087693140,0.78277832,110400.0,110390.0,0.51532785]
[1759087693442,0.78277832,110400.0,110390.0,1.33552785]
[1759087696540,0.78277832,110400.0,110390.0,0.51532785]
[1759087696739,0.78277832,110400.0,110390.0,1.33552785]
[1759087699946,0.78277832,110400.0,110390.0,0.99701886]
[1759087700147,0.44426933,110400.0,110390.0,1.33552785]
[1759087703852,0.78277832,110400.0,110390.0,1.33552785]
[1759087709354,0.44426933,110400.0,110390.0,1.33552785]
[1759087710756,0.44426933,110400.0,110390.0,1.33548785]
[1759087711156,0.78277832,110400.0,110390.0,1.33548785]
[1759087711557,0.78277832,110400.0,110390.0,0.51532785]
[1759087711749,0.78277832,110400.0,110390.0,1.33548785]
[1759087719462,0.38277832,110400.0,110390.0,1.33548785]
[1759087719672,0.04426933,110400.0,110390.0,1.33548785]
[1759087719857,0.38277832,110400.0,110390.0,1.33548785]
[1759087720461,0.38277832,110400.0,110390.0,1.69628785]
[1759087721561,0.04426933,110400.0,110390.0,1.69628785]
[1759087721862,0.38277832,110400.0,110390.0,1.69628785]
[1759087728369,0.38277832,110400.0,110390.0,0.87612785]
[1759087728572,0.39650832,110400.0,110390.0,1.69628785]
[1759087728871,0.38277832,110400.0,110390.0,1.69628785]
[1759087729570,0.38277832,110400.0,110390.0,0.87612785]
[1759087729772,0.38277832,110400.0,110390.0,1.33548785]
[1759087734380,0.04426933,110400.0,110390.0,1.33545948]
[1759087741678,0.02116933,110400.0,110390.0,1.33545948]
[1759087742980,0.02116933,110400.0,110390.0,1.69625948]
[1759087743278,0.02116933,110400.0,110390.0,1.69725948]
[1759087744982,0.02116933,110400.0,110390.0,1.33645948]
[1759087745169,0.02116933,110400.0,110390.0,1.69725948]
[1759087748275,0.02116933,110400.0,110390.0,0.87709948]
[1759087748476,0.02116933,110400.0,110390.0,1.69721948]
[1759087751180,0.04361933,110400.0,110390.0,0.87709948]
[1759087751373,0.04361933,110400.0,110390.0,1.69721948]
[1759087756192,0.04361933,110400.0,110390.0,1.69717948]
[1759087757393,0.0436864,110400.0,110390.0,1.69717948]
[1759087761095,0.0436864,110400.0,110390.0,0.87709948]
[1759087761294,0.0436864,110400.0,110390.0,1.69713948]
[1759087773206,0.02245,110400.0,110390.0,1.69713948]
[1759087773404,0.0436796,110400.0,110390.0,1.69713948]
[1759087778008,0.0436796,110400.0,110390.0,0.87709948]
[1759087778216,0.0436796,110400.0,110390.0,1.69705948]
[1759087781311,0.0436796,110400.0,110390.0,0.87709948]
[1759087781519,0.0436796,110400.0,110390.0,1.69705948]
[1759087784016,0.0436796,110400.0,110390.0,0.53861886]
[1759087784221,0.0436796,110400.0,110390.0,1.35857886]
[1759087784423,0.0436796,110400.0,110390.0,1.69705948]
[1759087784618,0.0436796,110400.0,110390.0,1.35857886]
[1759087784817,0.0436796,110400.0,110390.0,1.69705948]
[1759087785117,0.0436796,110400.0,110390.0,1.69701948]
[1759087788122,0.0436796,110400.0,110390.0,1.64819004]
[1759087789624,0.0436796,110400.0,110390.0,0.82827004]
[1759087789926,0.0436796,110400.0,110390.0,1.64819004]
[1759087792325,0.0212296,110400.0,110390.0,1.64819004]
[1759087794226,0.0212296,110400.0,110390.0,1.64815245]
[1759087799330,0.0212296,110400.0,110390.0,1.30970942]
[1759087799536,0.0212296,110400.0,110390.0,1.64815245]
[1759087800327,0.0423796,110400.0,110390.0,1.64815245]
[1759087800533,0.0423796,110400.0,110390.0,1.64819245]
[1759087801026,0.0423796,110400.0,110390.0,0.82823245]
[1759087801232,0.0423796,110400.0,110390.0,1.64819245]
[1759087802634,0.0423796,110400.0,110390.0,0.82823245]
[1759087802834,0.0423796,110400.0,110390.0,1.64831245]
[1759087803036,0.0423796,110400.0,110390.0,0.82823245]
[1759087803227,0.0423796,110400.0,110390.0,1.64851245]
[1759087805138,0.0423796,110400.0,110390.0,0.48978942]
[1759087805338,0.0423796,110400.0,110390.0,1.64851245]
[1759087809143,0.0423796,110400.0,110390.0,0.82823245]
[1759087809342,0.0423796,110400.0,110390.0,1.65035245]
[1759087809543,0.0423796,110400.0,110390.0,1.65039245]
[1759087809943,0.0423796,110400.0,110390.0,1.65043245]
[1759087810341,0.0423796,110400.0,110390.0,1.69922801]
[1759087810541,0.0423796,110400.0,110390.0,1.65043245]
[1759087811940,0.0423796,110400.0,110390.0,0.87702825]
[1759087812140,0.0423796,110400.0,110390.0,1.69926866]
[1759087812542,0.0423796,110400.0,110390.0,1.65047245]
[1759087813245,0.38082263,110400.0,110390.0,1.65047245]
[1759087814345,0.38082263,110400.0,110390.0,0.82823245]
[1759087814548,0.38082263,110400.0,110390.0,1.65047245]
[1759087815546,0.38082263,110400.0,110390.0,0.82823245]
[1759087815845,0.38082263,110400.0,110390.0,1.65043245]
[1759087816647,0.38082263,110400.0,110390.0,1.28963245]
[1759087816844,0.38082263,110400.0,110390.0,1.65043245]
[1759087817648,0.38082263,110400.0,110390.0,1.28963245]
[1759087817850,0.38082263,110400.0,110390.0,1.65043245]